fUSD/lending_fUSD_20260226
["ID","MTS","AMOUNT","RATE_DAILY","PERIOD"]
[406683800,1772075445830,-174.81061234,0.000162,5]
[406683801,1772075445839,-1591.1940946,0.000162,5]
[406683802,1772075445848,-152.0,0.000162,22]
[406683803,1772075445858,-152.0,0.000162,5]
[406683804,1772075445867,-1000.0,0.00016282,2]
[406683805,1772075445877,-5411.08120869,0.00016299,2]
[406683806,1772075445887,-150.0,0.00016324,2]
[406683807,1772075445896,-500.0,0.00016356,2]
[406683808,1772075445906,-900.0,0.00016356,2]
[406683809,1772075445916,-201.4961393,0.00016357,2]
[406683810,1772075445925,-845.0,0.000164,2]
[406683811,1772075445935,-1493.0,0.000164,2]
[406683812,1772075445944,-500.0,0.00016438,2]
[406683813,1772075445953,-500.0,0.00016438,3]
[406683814,1772075445965,-500.0,0.00016438,4]
[406683815,1772075445975,-500.0,0.00016438,5]
[406683816,1772075445984,-500.0,0.00016438,6]
[406683817,1772075445993,-500.0,0.00016438,7]
[406683818,1772075446003,-500.0,0.00016438,8]
[406683819,1772075446012,-500.0,0.00016438,9]
[406683820,1772075446022,-500.0,0.00016438,10]
[406683821,1772075446031,-500.0,0.00016438,11]
[406683822,1772075446040,-500.0,0.00016438,12]
[406683823,1772075446050,-500.0,0.00016438,13]
[406683824,1772075446060,-500.0,0.00016438,14]
[406683825,1772075446069,-500.0,0.00016438,15]
[406683826,1772075446079,-500.0,0.00016438,16]
[406683827,1772075446088,-533.85398751,0.00016438,17]
[406683828,1772075446097,-500.0,0.00016438,2]
[406683829,1772075446107,-7383.73,0.00016438,2]
[406683831,1772075446116,-228.09,0.00016438,2]
[406683833,1772075446125,-1000.0,0.00016438,2]
[406683834,1772075446134,-1190.62156941,0.00016438,2]
[406683835,1772075446143,-3007.20418576,0.00016438,2]
[406683836,1772075446153,-164.34,0.00016446,2]
[406683837,1772075446162,-500.0,0.00016493,2]
[406683838,1772075446171,-500.0,0.00016548,2]
[406683839,1772075446182,-18151.59689484,0.00016574,2]
[406683840,1772075446192,-1310.02753914,0.00016574,2]
[406683841,1772075446202,-500.0,0.00016602,2]
[406683842,1772075446212,-3008.21306824,0.00016655,2]
[406683843,1772075446222,-500.0,0.00016657,2]
[406683844,1772075446232,-18457.91106556,0.00016667,2]
[406683845,1772075446241,-1000.0,0.0001667,2]
[406683846,1772075446251,-500.0,0.00016712,2]
[406683847,1772075446261,-694.9,0.00016712,2]
[406683848,1772075446271,-1000.0,0.00016712,2]
[406683849,1772075446280,-167.07,0.00016712,2]
[406683850,1772075446290,-2844.0,0.0001672,2]
[406683851,1772075446300,-500.0,0.00016767,2]
[406683852,1772075446309,-500.0,0.00016822,2]
[406683853,1772075446319,-154.17,0.00016835,2]
[406683854,1772075446328,-10000.0,0.00016843,2]
[406683855,1772075446337,-500.0,0.00016876,2]
[406683856,1772075446356,-194391.178534,0.00016912,2]
[406683857,1772075446367,-26632.6883639,0.00016912,2]
[406683858,1772075446381,-500.0,0.00016931,2]
[406683859,1772075446392,-150.0,0.00016943,2]
[406683860,1772075446402,-150.0,0.00016943,2]
[406683861,1772075446412,-150.0,0.00016943,2]
[406683862,1772075446423,-150.05,0.00016943,2]
[406683863,1772075446432,-150.0,0.00016943,2]
[406683864,1772075446442,-150.0,0.00016943,2]
[406683865,1772075446453,-150.068,0.00016943,2]
[406683866,1772075446463,-150.0,0.00016943,2]
[406683867,1772075446473,-1340.0,0.00016943,2]
[406683868,1772075446483,-618.0,0.00016943,2]
[406683869,1772075446493,-3556.732,0.00016943,2]
[406683870,1772075446502,-1280.071,0.00016943,2]
[406683871,1772075446512,-150.175,0.00016943,2]
[406683872,1772075446521,-1211.0,0.00016943,2]
[406683873,1772075446531,-920.0,0.00016943,2]
[406683874,1772075446540,-5983.0,0.00016943,2]
[406683875,1772075446549,-2456.0,0.00016943,2]
[406683876,1772075446562,-413.0,0.00016943,2]
[406683877,1772075446572,-500.0,0.00016986,2]
[406683878,1772075446582,-694.9,0.00016986,2]
[406683879,1772075446592,-300.0,0.00017,2]
[406683880,1772075446601,-845.0,0.0001704,2]
[406683881,1772075446610,-190.0,0.0001704,2]
[406683882,1772075446620,-317.29319668,0.00017041,2]
[406683883,1772075446629,-167.86555459,0.00017048,2]
[406683884,1772075446639,-1000.0,0.00017058,2]
[406683885,1772075446649,-200.0,0.00017058,2]
[406683886,1772075446659,-5436.70489032,0.000171,2]
[406683887,1772075446668,-350.0,0.00017138,2]
[406683888,1772075446677,-1363.99,0.0001725,2]
[406683889,1772075446688,-694.9,0.0001726,2]
[406683890,1772075446698,-90339.9982114,0.00017341,2]
[406683891,1772075446707,-1080.020512,0.00017341,2]
[406683892,1772075446717,-500.0,0.00017355,2]
[406683893,1772075446727,-160.0,0.0001736,2]
[406683894,1772075446738,-2844.0,0.0001736,2]
[406683895,1772075446749,-857.0,0.0001736,2]
[406683896,1772075446758,-600.0,0.00017452,7]
[406683897,1772075446769,-260.96107048,0.00017489,2]
[406683898,1772075446778,-374.0,0.000175,2]
[406683899,1772075446788,-694.9,0.00017534,2]
[406683900,1772075446798,-456.0,0.00017539,2]
[406683901,1772075446807,-156.0,0.00017539,2]
[406683902,1772075446817,-213.1171,0.00017616,2]
[406683903,1772075446827,-500.0,0.00017616,2]
[406683904,1772075446837,-500.0,0.00017616,2]
[406683905,1772075446846,-500.0,0.00017616,2]
[406683906,1772075446855,-500.0,0.00017616,2]
[406683907,1772075446865,-500.0,0.00017616,2]
[406683908,1772075446874,-500.0,0.00017616,2]
[406683909,1772075446883,-500.0,0.00017616,2]
[406683910,1772075446896,-500.0,0.00017616,2]
[406683911,1772075446906,-500.0,0.00017616,2]
[406683912,1772075446916,-500.0,0.00017616,2]
[406683913,1772075446927,-500.0,0.00017616,2]
[406683914,1772075446938,-500.0,0.00017616,2]
[406683915,1772075446948,-500.0,0.00017616,2]
[406683916,1772075446958,-500.0,0.00017616,2]
[406683917,1772075446968,-500.0,0.00017616,2]
[406683918,1772075446978,-500.0,0.00017616,2]
[406683919,1772075446987,-500.0,0.00017616,2]
[406683920,1772075446998,-500.0,0.00017616,2]
[406683921,1772075447008,-500.0,0.00017616,2]
[406683922,1772075447017,-500.0,0.00017616,2]
[406683923,1772075447027,-500.0,0.00017616,2]
[406683924,1772075447036,-500.0,0.00017616,2]
[406683925,1772075447046,-500.0,0.00017616,2]
[406683926,1772075447056,-500.0,0.00017616,2]
[406683927,1772075447066,-500.0,0.00017616,2]
[406683928,1772075447076,-500.0,0.00017616,2]
[406683929,1772075447085,-500.0,0.00017616,2]
[406683930,1772075447095,-500.0,0.00017616,2]
[406683931,1772075447104,-500.0,0.00017616,2]
[406683932,1772075447115,-500.0,0.00017616,2]
[406683933,1772075447125,-500.0,0.00017616,2]
[406683934,1772075447136,-500.0,0.00017616,2]
[406683935,1772075447146,-500.0,0.00017616,2]
[406683936,1772075447156,-500.0,0.00017616,2]
[406683937,1772075447166,-500.0,0.00017616,2]
[406683938,1772075447176,-500.0,0.00017616,2]
[406683939,1772075447185,-500.0,0.00017616,2]
[406683940,1772075447195,-500.0,0.00017616,2]
[406683941,1772075447204,-500.0,0.00017616,2]
[406683942,1772075447214,-500.0,0.00017616,2]
[406683943,1772075447223,-500.0,0.00017616,2]
[406683944,1772075447232,-500.0,0.00017616,2]
[406683945,1772075447242,-500.0,0.00017616,2]
[406683946,1772075447252,-500.0,0.00017616,2]
[406683947,1772075447262,-500.0,0.00017616,2]
[406683948,1772075447276,-500.0,0.00017616,2]
[406683949,1772075447285,-500.0,0.00017616,2]
[406683950,1772075447295,-500.0,0.00017616,2]
[406683951,1772075447304,-500.0,0.00017616,2]
[406683952,1772075447314,-500.0,0.00017616,2]
[406683953,1772075447323,-500.0,0.00017616,2]
[406683954,1772075447333,-500.0,0.00017616,2]
[406683955,1772075447343,-500.0,0.00017616,2]
[406683956,1772075447353,-500.0,0.00017616,2]
[406683957,1772075447362,-500.0,0.00017616,2]
[406683958,1772075447372,-500.0,0.00017616,2]
[406683959,1772075447386,-500.0,0.00017616,2]
[406683960,1772075447396,-500.0,0.00017616,2]
[406683961,1772075447406,-500.0,0.00017616,2]
[406683962,1772075447417,-500.0,0.00017616,2]
[406683963,1772075447427,-500.0,0.00017616,2]
[406683964,1772075447437,-500.0,0.00017616,2]
[406683965,1772075447446,-500.0,0.00017616,2]
[406683966,1772075447457,-500.0,0.00017616,2]
[406683967,1772075447467,-500.0,0.00017616,2]
[406683968,1772075447478,-500.0,0.00017616,2]
[406683969,1772075447488,-500.0,0.00017616,2]
[406683970,1772075447498,-500.0,0.00017616,2]
[406683971,1772075447508,-500.0,0.00017616,2]
[406683972,1772075447518,-500.0,0.00017616,2]
[406683973,1772075447527,-500.0,0.00017616,2]
[406683974,1772075447537,-500.0,0.00017616,2]
[406683975,1772075447547,-500.0,0.00017616,2]
[406683976,1772075447557,-500.0,0.00017616,2]
[406683977,1772075447566,-500.0,0.00017616,2]
[406683978,1772075447578,-500.0,0.00017616,2]
[406683979,1772075447745,-500.0,0.00017616,2]
[406683980,1772075447756,-500.0,0.00017616,2]
[406683981,1772075447765,-500.0,0.00017616,2]
[406683982,1772075447775,-500.0,0.00017616,2]
[406683983,1772075447784,-301.2894,0.00017616,2]
[406683984,1772075447794,-1163.0674932,0.0001764,2]
[406683985,1772075447803,-453.0,0.00017688,2]
[406683986,1772075447812,-900.0,0.00017726,7]
[406683987,1772075447821,-453.0,0.00017739,2]
[406683988,1772075447830,-380.0,0.00017752,2]
[406683989,1772075447839,-350.0,0.00017778,3]
[406683990,1772075447849,-20157.5782687,0.00017786,2]
[406683991,1772075447858,-240.9851498,0.00017786,2]
[406683992,1772075447868,-155.485,0.00017807,2]
[406683993,1772075447878,-694.9,0.00017808,2]
[406683994,1772075447890,-500.0,0.00017808,2]
[406683995,1772075447899,-500.0,0.00017808,2]
[406683996,1772075447911,-500.0,0.00017808,2]
[406683997,1772075447920,-452.33808899,0.00017808,2]
[406683998,1772075447930,-500.0,0.00017808,2]
[406683999,1772075447939,-500.0,0.00017808,2]
[406684000,1772075447948,-500.0,0.00017808,2]
[406684001,1772075447957,-500.0,0.00017808,2]
[406684002,1772075447967,-500.0,0.00017808,2]
[406684003,1772075447979,-500.0,0.00017808,2]
[406684004,1772075447988,-500.0,0.00017808,2]
[406684005,1772075447998,-500.0,0.00017808,2]
[406684006,1772075448011,-500.0,0.00017808,2]
[406684007,1772075448020,-500.0,0.00017808,2]
[406684008,1772075448030,-500.0,0.00017808,2]
[406684009,1772075448039,-550.0,0.00017808,2]
[406684010,1772075448048,-500.0,0.00017808,2]
[406684011,1772075448057,-500.0,0.00017808,2]
[406684012,1772075448067,-500.0,0.00017808,2]
[406684013,1772075448076,-500.0,0.00017808,2]
[406684014,1772075448085,-800.0,0.00017808,2]
[406684015,1772075448096,-380.0,0.00017819,2]
[406684016,1772075448107,-380.0,0.00017826,2]
[406684017,1772075448116,-380.0,0.00017828,2]
[406684018,1772075448133,-261.85892847,0.0001783,2]
[406684019,1772075448150,-374.0,0.00017834,2]
[406684020,1772075448160,-374.0,0.00017843,2]
[406684021,1772075448169,-500.0,0.00017863,2]
[406684022,1772075448178,-380.0,0.0001788,2]
[406684023,1772075448187,-380.0,0.00017886,2]
[406684024,1772075448197,-761.17059545,0.0001789,2]
[406684025,1772075448206,-1226.81574695,0.0001789,2]
[406684026,1772075448215,-380.0,0.00017894,2]
[406684027,1772075448224,-380.0,0.00017895,2]
[406684028,1772075448233,-273.89074113,0.00017895,2]
[406684029,1772075448246,-500.0,0.00017899,2]
[406684030,1772075448255,-507.65701083,0.00017899,2]
[406684031,1772075448264,-10186.8849,0.000179,2]
[406684032,1772075448273,-1325.33516905,0.000179,3]
[406684033,1772075448282,-1516.64714272,0.000179,2]
[406684034,1772075448565,-1425.82817633,0.000179,2]
[406684035,1772075448576,-5460.70548018,0.000179,2]
[406684036,1772075448587,-509.65562623,0.000179,2]
[406684037,1772075448606,-9545.0746401,0.000179,2]
[406684038,1772075448615,-224.83939755,0.000179,2]
[406684039,1772075448624,-254.384888,0.000179,2]
[406684040,1772075448634,-254.384888,0.000179,2]
[406684041,1772075448643,-254.384888,0.000179,2]
[406684042,1772075448653,-254.384888,0.000179,2]
[406684043,1772075448663,-18151.59689484,0.000179,2]
[406684044,1772075448672,-3008.21306824,0.000179,2]
[406684045,1772075448680,-5411.08120869,0.000179,2]
[406684046,1772075448689,-8876.0,0.000179,2]
[406684047,1772075448698,-380.0,0.00017912,2]
[406684048,1772075448707,-500.0,0.00017918,2]
[406684049,1772075448719,-380.0,0.00017919,2]
[406684050,1772075448728,-380.0,0.00017926,2]
[406684051,1772075448737,-453.0,0.00017932,2]
[406684052,1772075448746,-380.0,0.00017954,2]
[406684053,1772075448755,-380.0,0.00017961,2]
[406684054,1772075448764,-380.0,0.00017962,2]
[406684055,1772075448773,-380.0,0.0001797,2]
[406684056,1772075448782,-500.0,0.00017972,2]
[406684057,1772075448791,-380.0,0.00017973,2]
[406684058,1772075448801,-159.23,0.0001798,2]
[406684059,1772075448810,-374.0,0.0001798,2]
[406684060,1772075448820,-167.86555459,0.0001799,2]
[406684061,1772075448829,-374.0,0.00017994,2]
[406684062,1772075448839,-500.0,0.00017994,2]
[406684063,1772075448849,-500.0,0.00017994,2]
[406684064,1772075448858,-500.0,0.00017994,2]
[406684065,1772075448885,-375.12411404,0.00017994,2]
[406684066,1772075448894,-151.0,0.00017998,2]
[406684067,1772075448903,-151.0,0.00017998,2]
[406684068,1772075448912,-153.399862,0.00017998,2]
[406684069,1772075448921,-151.0,0.00017998,2]
[406684070,1772075448931,-152.642581,0.00017998,2]
[406684071,1772075448940,-151.0,0.00017998,2]
[406684072,1772075448949,-175.668016,0.00017998,2]
[406684073,1772075448958,-151.0,0.00017998,2]
[406684074,1772075448968,-187.550991,0.00017998,2]
[406684075,1772075448978,-185.918267,0.00017998,2]
[406684076,1772075448987,-283.44809264,0.00017999,2]
[406684077,1772075448997,-309.62563364,0.00017999,2]
[406684078,1772075449006,-300.0,0.00017999,2]
[406684079,1772075449015,-25397.81157615,0.00018,2]
[406684080,1772075449026,-52653.06518398,0.00018,2]
[406684081,1772075449209,-767.35294653,0.00018,2]
[406684082,1772075449220,-163064.06807713,0.00018,2]
[406684083,1772075449232,-5706.705,0.00018,2]
[406684084,1772075449248,-8012.14879119,0.00018,2]
[406684085,1772075449259,-659.01753751,0.00018,2]
[406684086,1772075449342,-1310.02753914,0.000179,2]
[406684087,1772075449352,-5195.97608323,0.00018,2]
[406684088,1772075449368,-4986.09043882,0.00018,2]
[406684710,1772076631981,-207.0,6.544e-05,2]
[406684711,1772076631990,-1023.22,6.544e-05,2]
[406684712,1772076632001,-26.78,6.544e-05,2]
[406684713,1772076632011,-542.34,6.544e-05,2]
[406684714,1772076632020,-542.34,6.826e-05,2]
[406684715,1772076632029,-542.34,7.108e-05,2]
[406684716,1772076632039,-5000.0,7.198e-05,2]
[406684717,1772076632047,-250.0,7.198e-05,2]
[406684718,1772076632057,-250.0,7.199e-05,2]
[406684719,1772076632067,-542.34,7.39e-05,2]
[406684720,1772076632076,-542.34,7.672e-05,2]
[406684721,1772076632085,-417.0,7.9e-05,2]
[406684722,1772076632094,-542.34,7.953e-05,2]
[406684723,1772076632103,-124.86346745,8.219e-05,2]
[406684724,1772076632114,-226.23032955,8.219e-05,2]
[406684725,1772076632124,-542.34,8.235e-05,2]
[406684726,1772076632133,-150.84,8.4e-05,2]
[406684727,1772076632142,-225.97,8.4e-05,2]
[406684728,1772076632151,-542.34,8.517e-05,2]
[406684729,1772076632160,-507.0,8.522e-05,2]
[406684730,1772076632170,-395.0,8.539e-05,2]
[406684731,1772076632180,-1200.0,8.592e-05,2]
[406684732,1772076632189,-250.0,8.647e-05,2]
[406684733,1772076632199,-542.34,8.799e-05,2]
[406684734,1772076632207,-542.34,9.081e-05,2]
[406684735,1772076632217,-250.0,9.24e-05,2]
[406684736,1772076632226,-542.34,9.362e-05,2]
[406684737,1772076632235,-542.34,9.644e-05,2]
[406684738,1772076632244,-542.34,9.926e-05,2]
[406684739,1772076632253,-209.57967045,0.00010208,2]
[406684741,1772076632265,-332.76032955,0.00010208,2]
[406684742,1772076632274,-542.34,0.0001049,2]
[406684743,1772076632284,-542.34,0.00010771,2]
[406684744,1772076632442,-542.34,0.00011053,2]
[406684745,1772076632463,-542.34,0.00011335,2]
[406684746,1772076632473,-542.34,0.00011617,2]
[406684747,1772076632483,-150.99,0.00011683,2]
[406684748,1772076632493,-5069.35312628,0.00011683,2]
[406684749,1772076632506,-6727.27509278,0.00011683,2]
[406684750,1772076632518,-500.0,0.00011683,2]
[406684751,1772076632534,-791.24178094,0.00011683,2]
[406684752,1772076632543,-150.99,0.00011683,2]
[406684753,1772076632552,-1040.57824313,0.00011683,2]
[406684754,1772076632564,-487.0242411,0.00011683,2]
[406684755,1772076632579,-3062.32093689,0.00011683,2]
[406684756,1772076632591,-336.37939,0.00011683,2]
[406684757,1772076632602,-810.59415021,0.00011683,2]
[406684758,1772076632614,-1623.11679656,0.00011683,2]
[406684759,1772076632626,-805.74439359,0.00011683,2]
[406684760,1772076632645,-1834.23184852,0.00011683,2]
[406684761,1772076632654,-299.99,0.00011683,2]
[406684762,1772076632664,-542.34,0.00011899,2]
[406684763,1772076632673,-500.0,0.00012336,2]
[406684764,1772076632682,-551.52556873,0.00012336,2]
[406684765,1772076632691,-166.03029725,0.00012337,2]
[406684771,1772076638043,-621.77,0.00012337,2]
[406684772,1772076638151,-543.04654058,0.00012337,2]
[406684773,1772076638206,-432.46183533,0.00012337,2]
[406684774,1772076638217,-36331.28395714,0.00012337,2]
[406684775,1772076638315,-1298.58005086,0.00012337,2]
[406684963,1772076640303,-621.01,0.00012337,2]
[406684965,1772076640315,-35199.27388206,0.00012337,2]
[406684988,1772076640520,-44835.42323369,0.00012337,2]
[406685000,1772076640627,-1378.16729964,0.00012337,2]
[406685272,1772076643380,-249769.58481603,0.00012337,2]
[406685350,1772076645890,-614.52464211,0.00012337,2]
[406685627,1772077832158,-500.0,0.00011069,2]
[406685628,1772077832168,-61.32919868,0.000115,2]
[406685629,1772077832181,-522.04790989,0.000115,2]
[406685630,1772077832192,-298.29920252,0.000115,2]
[406685631,1772077832203,-1283.82671787,0.000115,2]
[406685632,1772077832214,-533.21361531,0.000115,2]
[406685633,1772077832225,-366.22127711,0.000115,2]
[406685634,1772077832268,-5319.16972371,0.000115,2]
[406685635,1772077832278,-1034.13822803,0.00011556,2]
[406685636,1772077832287,-300.0,0.00011561,2]
[406685637,1772077832301,-300.0,0.00011567,2]
[406685638,1772077832311,-500.0,0.00011567,2]
[406685639,1772077832320,-195.0,0.00011577,2]
[406685641,1772077832330,-253.09926298,0.00011595,2]
[406685643,1772077832339,-500.0,0.00011595,2]
[406685645,1772077832348,-331.51765976,0.00011595,2]
[406685646,1772077832362,-168.48234024,0.00011595,2]
[406685647,1772077832372,-500.0,0.00011595,2]
[406685648,1772077832381,-1344.30120555,0.00011599,2]
[406685658,1772077838406,-1155.69879445,0.00011599,2]
[406685659,1772077838416,-195.0,0.00011614,2]
[406685660,1772077838425,-195.0,0.00011614,2]
[406685661,1772077838434,-195.0,0.00011614,2]
[406685662,1772077838444,-2500.0,0.00011629,2]
[406685663,1772077838453,-2500.0,0.00011629,2]
[406685664,1772077838462,-2500.0,0.00011629,2]
[406685665,1772077838472,-299.99,0.00011696,2]
[406685666,1772077838481,-1370.72775354,0.00011698,2]
[406685673,1772077840345,-1304.36854246,0.00011698,2]
[406685676,1772077840357,-7324.893704,0.00011698,2]
[406685678,1772077840366,-150.99,0.00011698,2]
[406685679,1772077840375,-150.99,0.00011698,2]
[406685696,1772077840530,-1852.42,0.00011705,2]
[406685698,1772077840540,-1034.13822801,0.00011745,2]
[406685700,1772077840549,-3361.35,0.00011774,2]
[406685702,1772077840559,-16241.01683007,0.00011934,2]
[406685728,1772077840819,-116112.7699223,0.00011934,2]
[406685964,1772077843242,-318.15,0.00011934,2]
[406685987,1772077843451,-425.89028401,0.00011934,2]
[406685990,1772077843505,-545112.26361499,0.00011934,2]
[406686127,1772077877120,162.81981363,0.0001789,120]
[406686328,1772079003780,160.42111676,0.00010521,2]
[406686329,1772079003806,75.57888324,0.00010521,2]
[406686348,1772079032287,-200.0,0.00010521,2]
[406686350,1772079032296,-500.0,0.00010523,2]
[406686352,1772079032305,-59.80301203,0.00010524,2]
[406686354,1772079032317,-440.19698797,0.00010524,2]
[406686355,1772079032326,-170.54801203,0.00010527,2]
[406686356,1772079032337,-2329.45198797,0.00010527,2]
[406686357,1772079032347,-2117.65152764,0.00010533,2]
[406686358,1772079032358,-881.86849656,0.00010533,2]
[406686359,1772079032370,-753.09618127,0.00010533,2]
[406686360,1772079032381,-1387.20657822,0.00010533,2]
[406686411,1772079038335,-856.56741187,0.00010533,2]
[406686412,1772079038346,-569.40980444,0.00010533,2]
[406686413,1772079038356,-371.68945906,0.00010569,2]
[406686414,1772079038365,-344.71274267,0.00010617,2]
[406686415,1772079038375,-228.93190489,0.00010649,2]
[406686416,1772079038388,-558.38385669,0.00010649,2]
[406686417,1772079038400,-401.616215,0.00010649,2]
[406686418,1772079038412,-1311.06802342,0.00010649,2]
[406686419,1772079038422,-2500.0,0.00010649,2]
[406686420,1772079038431,-344.71274267,0.00010938,2]
[406686421,1772079038441,-166.66,0.00010959,2]
[406686422,1772079038450,-150.0,0.00010959,2]
[406686423,1772079038460,-150.99,0.00010979,2]
[406686424,1772079038469,-213.93590501,0.00010992,2]
[406686425,1772079038480,-500.0,0.00011001,2]
[406686426,1772079038491,-359.7254636,0.00011001,2]
[406686427,1772079038501,-305.54055924,0.00011001,2]
[406686428,1772079038510,-772.9865565,0.00011001,2]
[406686429,1772079038520,-772.9865565,0.00011001,2]
[406686430,1772079038531,-772.9865565,0.00011001,2]
[406686431,1772079038541,-772.9865565,0.00011001,2]
[406686432,1772079038552,-772.9865565,0.00011001,2]
[406686433,1772079038562,-772.9865565,0.00011001,2]
[406686434,1772079038572,-772.9865565,0.00011001,2]
[406686435,1772079038584,-772.9865565,0.00011001,2]
[406686436,1772079038594,-772.9865565,0.00011001,2]
[406686437,1772079038604,-772.9865565,0.00011001,2]
[406686438,1772079038614,-772.9865565,0.00011001,2]
[406686439,1772079038624,-772.9865565,0.00011001,2]
[406686440,1772079038633,-772.9865565,0.00011001,2]
[406686441,1772079038643,-772.9865565,0.00011001,2]
[406686442,1772079038659,-772.9865565,0.00011001,2]
[406686443,1772079038668,-772.9865565,0.00011001,2]
[406686444,1772079038678,-772.9865565,0.00011001,2]
[406686445,1772079038687,-772.9865565,0.00011001,2]
[406686446,1772079038696,-772.9865565,0.00011001,2]
[406686447,1772079038706,-772.9865565,0.00011001,2]
[406686449,1772079038716,-772.9865565,0.00011001,2]
[406686451,1772079038725,-772.9865565,0.00011001,2]
[406686453,1772079038735,-772.9865565,0.00011001,2]
[406686454,1772079038745,-772.9865565,0.00011001,2]
[406686455,1772079038754,-772.9865565,0.00011001,2]
[406686456,1772079038764,-772.9865565,0.00011001,2]
[406686457,1772079038773,-772.9865565,0.00011001,2]
[406686458,1772079038783,-772.9865565,0.00011001,2]
[406686459,1772079038792,-772.9865565,0.00011001,2]
[406686460,1772079038801,-772.9865565,0.00011001,2]
[406686461,1772079038811,-772.9865565,0.00011001,2]
[406686462,1772079038821,-772.9865565,0.00011001,2]
[406686463,1772079038830,-772.9865565,0.00011001,2]
[406686464,1772079038839,-772.9865565,0.00011001,2]
[406686465,1772079038849,-772.9865565,0.00011001,2]
[406686466,1772079038859,-772.9865565,0.00011001,2]
[406686467,1772079038869,-772.9865565,0.00011001,2]
[406686468,1772079038878,-772.9865565,0.00011001,2]
[406686469,1772079038889,-772.9865565,0.00011001,2]
[406686470,1772079038901,-772.9865565,0.00011001,2]
[406686471,1772079038911,-772.9865565,0.00011001,2]
[406686472,1772079038921,-772.9865565,0.00011001,2]
[406686473,1772079038931,-772.9865565,0.00011001,2]
[406686474,1772079038941,-772.9865565,0.00011001,2]
[406686475,1772079038951,-772.9865565,0.00011001,2]
[406686476,1772079038961,-772.9865565,0.00011001,2]
[406686477,1772079038971,-772.9865565,0.00011001,2]
[406686478,1772079038981,-772.9865565,0.00011001,2]
[406686479,1772079038991,-772.9865565,0.00011001,2]
[406686480,1772079039001,-772.9865565,0.00011001,2]
[406686481,1772079039010,-772.9865565,0.00011001,2]
[406686482,1772079039020,-772.9865565,0.00011001,2]
[406686483,1772079039029,-310.32233459,0.00011001,2]
[406686484,1772079039040,-770.89740365,0.00011001,2]
[406686485,1772079039050,-770.89740365,0.00011001,2]
[406686486,1772079039061,-770.89740365,0.00011001,2]
[406686487,1772079039071,-770.89740365,0.00011001,2]
[406686488,1772079039081,-770.89740365,0.00011001,2]
[406686489,1772079039091,-770.89740365,0.00011001,2]
[406686490,1772079039100,-770.89740365,0.00011001,2]
[406686491,1772079039109,-770.89740365,0.00011001,2]
[406686492,1772079039119,-770.89740365,0.00011001,2]
[406686493,1772079039128,-770.89740365,0.00011001,2]
[406686494,1772079039138,-770.89740365,0.00011001,2]
[406686495,1772079039147,-770.89740365,0.00011001,2]
[406686496,1772079039159,-770.89740365,0.00011001,2]
[406686497,1772079039168,-770.89740365,0.00011001,2]
[406686498,1772079039178,-770.89740365,0.00011001,2]
[406686499,1772079039188,-770.89740365,0.00011001,2]
[406686501,1772079039197,-770.89740365,0.00011001,2]
[406686502,1772079039207,-770.89740365,0.00011001,2]
[406686503,1772079039216,-770.89740365,0.00011001,2]
[406686504,1772079039226,-770.89740365,0.00011001,2]
[406686505,1772079039235,-770.89740365,0.00011001,2]
[406686506,1772079039245,-770.89740365,0.00011001,2]
[406686507,1772079039254,-770.89740365,0.00011001,2]
[406686508,1772079039264,-770.89740365,0.00011001,2]